{"text_format":"1","workbook":"xlsx","n_sheets":1,"sheets":["Sheet1"],"not_rendered":{"charts":0,"images":0,"macros":1,"external_links":0,"defined_names":0,"comments":0,"pivot_tables":0},"unopened":[],"bounds":{"document_bytes":16777216,"sheet_cells":100000,"rows_first":2000,"rows_last":500,"rows_between":2000,"halvings":0,"cell_chars":16384,"cell_head_chars":4096},"cells_cut":0,"cells_raw":0,"read":"whole","date_system":"1900"}

{"sheet":"Sheet1","index":0,"n_rows":51,"n_cols":5,"rows_kept":51,"cut":false,"hidden":false,"merged":[]}
[]
[]
[]
[]
[]
["Client ID","Date of Birth","Age","Gender","Sex"]
[1,"1988-02-14",{"$f":"IF(B7=\"\",\"\",DATEDIF(B7,TODAY(),\"y\"))","v":34},"M","M"]
[2,"1997-11-18",{"$f":"IF(B8=\"\",\"\",DATEDIF(B8,TODAY(),\"y\"))","v":24},"F","F"]
[1,"1988-02-14",34,"M","M"]
[3,"2001-04-02",21,"F","F"]
[null,null,""]
[null,null,""]
[null,null,""]
[null,null,""]
[null,null,""]
[null,null,""]
[null,null,""]
[null,null,""]
[null,null,""]
[null,null,""]
[null,null,""]
[null,null,""]
[null,null,""]
[null,null,""]
[null,null,""]
[null,null,""]
[null,null,""]
[null,null,""]
[null,null,""]
[null,null,""]
[null,null,""]
[null,null,""]
[null,null,""]
[null,null,""]
[null,null,""]
[null,null,""]
[null,null,""]
[null,null,""]
[null,null,""]
[null,null,""]
[null,null,""]
[null,null,""]
[null,null,""]
[null,null,""]
[null,null,""]
[null,null,""]
[null,null,""]
[null,null,""]
[null,null,""]
[null,null,""]
[null,null,""]